fUST/lending_fUST_20250819
["ID","MTS","AMOUNT","RATE_DAILY","PERIOD"]
[380098230,1755540659405,-195.10598334,0.0002411,2]
[380098231,1755540659414,-149.888905,0.00024188,2]
[380098232,1755540659423,-232.18122251,0.000242,7]
[380098233,1755540659432,-160.0,0.000242,7]
[380098234,1755540659442,-161.04843478,0.00024219,2]
[380098235,1755540659451,-972.0,0.00024221,2]
[380098236,1755540659552,-2153.0,0.00024221,2]
[380098237,1755540659562,-637.0,0.00024221,2]
[380098238,1755540659572,-2000.0,0.00024256,2]
[380098239,1755540659581,-2200.0,0.00024284,2]
[380098240,1755540659591,-166.17,0.00024304,7]
[380098241,1755540659601,-206.49,0.00024304,7]
[380098242,1755540659611,-149.888905,0.00024325,7]
[380098243,1755540659620,-153.0,0.00024329,2]
[380098244,1755540659630,-200.0,0.0002433,10]
[380098245,1755540659639,-149.888905,0.00024345,7]
[380098246,1755540659648,-149.888905,0.00024366,7]
[380098247,1755540659658,-480.0,0.00024383,2]
[380098248,1755540659667,-151.0,0.00024383,7]
[380098249,1755540659676,-480.0,0.00024383,2]
[380098250,1755540659686,-492.16,0.00024383,2]
[380098251,1755540659695,-554.11,0.00024383,2]
[380098252,1755540659705,-525.31,0.00024383,2]
[380098253,1755540659714,-1144.44,0.00024383,2]
[380098254,1755540659724,-2196.43,0.00024383,2]
[380098255,1755540659733,-509.88,0.00024383,2]
[380098256,1755540659743,-2460.24,0.00024383,2]
[380098257,1755540659752,-1025.25,0.00024383,2]
[380098258,1755540659762,-2037.63,0.00024383,2]
[380098259,1755540659772,-956.52,0.00024383,2]
[380098260,1755540659782,-912.8,0.00024383,2]
[380098261,1755540659791,-3154.44,0.00024383,2]
[380098262,1755540659803,-1865.16,0.00024383,2]
[380098263,1755540659813,-1323.13,0.00024383,2]
[380098264,1755540659822,-1226.57,0.00024383,2]
[380098265,1755540659831,-480.0,0.00024383,2]
[380098266,1755540659840,-480.0,0.00024383,2]
[380098267,1755540659850,-578.28,0.00024383,2]
[380098268,1755540659859,-878.1,0.00024383,2]
[380098269,1755540659869,-578.32,0.00024383,2]
[380098270,1755540659880,-1482.03,0.00024383,2]
[380098271,1755540659889,-862.45,0.00024383,2]
[380098272,1755540659898,-480.0,0.00024383,2]
[380098273,1755540659908,-1075.46,0.00024383,2]
[380098274,1755540659917,-270.221988,0.00024383,7]
[380098275,1755540659927,-349.65,0.00024383,2]
[380098276,1755540659936,-520.78,0.00024383,2]
[380098277,1755540659945,-485.74,0.00024383,2]
[380098278,1755540659955,-528.31,0.00024383,2]
[380098279,1755540659964,-705.58,0.00024383,2]
[380098280,1755540659973,-527.712994,0.00024383,7]
[380098281,1755540659984,-527.712994,0.00024383,7]
[380098282,1755540659993,-194.0,0.00024384,2]
[380098283,1755540660003,-152.00550033,0.00024384,2]
[380098284,1755540660012,-149.888905,0.00024386,7]
[380098285,1755540660022,-149.888905,0.00024392,4]
[380098286,1755540660031,-232.18122251,0.000244,2]
[380098287,1755540660042,-843.81736472,0.000244,7]
[380098288,1755540660052,-3192.26,0.000244,7]
[380098289,1755540660062,-216.85420361,0.000244,7]
[380098290,1755540660073,-215.75323784,0.000244,7]
[380098291,1755540660083,-166.17,0.00024404,7]
[380098292,1755540660092,-4773.85318233,0.00024472,2]
[380098293,1755540660102,-18964.43,0.000245,2]
[380098294,1755540660112,-151.0,0.000245,7]
[380098295,1755540660121,-151.0,0.000245,7]
[380098296,1755540660131,-151.0,0.000245,7]
[380098297,1755540660141,-151.0,0.000245,7]
[380098298,1755540660150,-151.0,0.000245,7]
[380098299,1755540660160,-220.594588,0.000245,7]
[380098300,1755540660170,-200.08,0.00024509,2]
[380098301,1755540660180,-167.933839,0.00024603,2]
[380098302,1755540660190,-153.0,0.00024603,2]
[380098303,1755540660199,-153.0,0.00024603,2]
[380098304,1755540660209,-153.0,0.00024603,2]
[380098305,1755540660218,-153.0,0.00024603,2]
[380098306,1755540660228,-153.0,0.00024603,2]
[380098307,1755540660237,-153.0,0.00024603,2]
[380098308,1755540660247,-153.0,0.00024603,2]
[380098309,1755540660256,-153.0,0.00024603,2]
[380098310,1755540660267,-306.0,0.00024603,2]
[380098311,1755540660276,-149.888905,0.00024634,14]
[380098312,1755540660286,-309.3295662,0.00024657,2]
[380098313,1755540660296,-480.0,0.00024657,2]
[380098314,1755540660305,-492.16,0.00024657,2]
[380098315,1755540660315,-525.31,0.00024657,2]
[380098316,1755540660324,-1144.44,0.00024657,2]
[380098317,1755540660334,-2196.43,0.00024657,2]
[380098318,1755540660344,-509.88,0.00024657,2]
[380098319,1755540660354,-2460.24,0.00024657,2]
[380098320,1755540660364,-1025.25,0.00024657,2]
[380098321,1755540660373,-2037.63,0.00024657,2]
[380098322,1755540660383,-151.0,0.00024657,7]
[380098323,1755540660392,-151.0,0.00024657,7]
[380098324,1755540660402,-956.52,0.00024657,2]
[380098325,1755540660412,-3154.44,0.00024657,2]
[380098326,1755540660421,-912.8,0.00024657,2]
[380098327,1755540660431,-1865.16,0.00024657,2]
[380098328,1755540660441,-1323.13,0.00024657,2]
[380098329,1755540660450,-1226.57,0.00024657,2]
[380098330,1755540660460,-480.0,0.00024657,2]
[380098331,1755540660470,-480.0,0.00024657,2]
[380098332,1755540660480,-578.28,0.00024657,2]
[380098333,1755540660490,-878.1,0.00024657,2]
[380098334,1755540660499,-578.32,0.00024657,2]
[380098335,1755540660509,-1482.03,0.00024657,2]
[380098336,1755540660519,-862.45,0.00024657,2]
[380098337,1755540660529,-569.87270652,0.00024657,2]
[380098338,1755540660539,-1075.46,0.00024657,2]
[380098339,1755540660549,-520.78,0.00024657,2]
[380098340,1755540660558,-485.74,0.00024657,2]
[380098341,1755540660568,-528.31,0.00024657,2]
[380098342,1755540660578,-705.58,0.00024657,2]
[380098343,1755540660588,-1161.575646,0.00024658,2]
[380098344,1755540660597,-1160.515611,0.00024658,2]
[380098345,1755540660607,-500.0,0.00024658,2]
[380098346,1755540660617,-1632.86,0.00024679,2]
[380098347,1755540660626,-8779.83,0.000247,7]
[380098348,1755540660639,-927.18,0.000247,7]
[380098349,1755540660648,-151.0,0.000247,7]
[380098350,1755540660658,-151.0,0.000247,7]
[380098351,1755540660668,-151.0,0.000247,7]
[380098352,1755540660677,-235.407001,0.000247,7]
[380098353,1755540660686,-151.0,0.000247,7]
[380098354,1755540660695,-235.407001,0.000247,7]
[380098355,1755540660705,-151.0,0.000247,7]
[380098356,1755540660715,-167.820244,0.000247,7]
[380098357,1755540660724,-167.820244,0.000247,7]
[380098358,1755540660734,-151.0,0.000247,7]
[380098359,1755540660743,-151.0,0.000247,7]
[380098360,1755540660752,-241.165282,0.000247,7]
[380098361,1755540660762,-241.165282,0.000247,7]
[380098362,1755540660771,-149.888905,0.00024798,4]
[380098363,1755540660781,-151.318924,0.000248,7]
[380098364,1755540660791,-151.0,0.000248,7]
[380098365,1755540660803,-151.0,0.000248,7]
[380098366,1755540660813,-151.0,0.000248,7]
[380098367,1755540660823,-1034.77245163,0.000248,2]
[380098368,1755540660833,-381.98229732,0.000248,2]
[380098369,1755540660842,-2500.0,0.00024804,2]
[380098370,1755540660853,-823.0,0.0002482,2]
[380098371,1755540660862,-1000.0,0.00024873,2]
[380098372,1755540660872,-150.0,0.00024873,2]
[380098373,1755540660884,-153.0,0.00024877,2]
[380098374,1755540660895,-153.0,0.00024877,2]
[380098375,1755540660905,-153.0,0.00024877,2]
[380098376,1755540660914,-153.0,0.00024877,2]
[380098377,1755540660923,-4773.85318233,0.00024887,2]
[380098378,1755540660933,-815.0457456,0.000249,2]
[380098379,1755540660943,-151.0,0.000249,7]
[380098380,1755540660953,-151.0,0.000249,7]
[380098381,1755540660963,-151.0,0.000249,7]
[380098382,1755540660973,-151.0,0.000249,7]
[380098383,1755540660985,-151.0,0.000249,7]
[380098384,1755540660994,-294.40353,0.000249,7]
[380098385,1755540661004,-151.0,0.000249,7]
[380098387,1755540661014,-151.0,0.000249,7]
[380098388,1755540661024,-151.0,0.000249,7]
[380098389,1755540661034,-151.0,0.000249,7]
[380098390,1755540661044,-151.0,0.000249,7]
[380098391,1755540661055,-151.0,0.000249,7]
[380098392,1755540661065,-365.090392,0.000249,7]
[380098393,1755540661078,-365.090392,0.000249,7]
[380098394,1755540661087,-151.0,0.000249,7]
[380098395,1755540661097,-151.0,0.000249,7]
[380098396,1755540661107,-151.0,0.000249,7]
[380098397,1755540661117,-197.68920494,0.000249,7]
[380098398,1755540661126,-328081.41731688,0.000249,2]
[380098399,1755540661483,-480.0,0.00019178,2]
[380098400,1755540661492,-480.0,0.00019452,2]
[380098401,1755540661502,-502.58,0.00019716,3]
[380098402,1755540661514,-480.0,0.00019726,2]
[380098403,1755540661524,-480.0,0.0002,2]
[380098404,1755540661534,-480.0,0.00020273,2]
[380098405,1755540661544,-480.0,0.00020547,2]
[380098406,1755540661553,-480.0,0.00020821,2]
[380098407,1755540661563,-944.91999989,0.00021086,3]
[380098408,1755540661575,-60.24000011,0.00021086,3]
[380098409,1755540661585,-480.0,0.00021095,2]
[380098410,1755540661594,-480.0,0.00021369,2]
[380098411,1755540661604,-480.0,0.00021643,2]
[380098412,1755540661614,-480.0,0.00021917,2]
[380098413,1755540661623,-417.15472785,0.000222,7]
[380098414,1755540661728,-213.71622119,0.00023014,2]
[380098416,1755541126158,215.75323784,0.00028,120]
[380098419,1755541373207,159.225112,0.00013699,2]
[380098420,1755541714406,680.80041229,0.0001,7]
[380098421,1755541748573,215.75323784,0.00028,120]
[380098508,1755541837688,-152.01417573,0.000189,2]
[380098510,1755541837697,-159.28441502,0.00019063,2]
[380098511,1755541837707,-159.28441502,0.00019068,2]
[380098513,1755541837716,-2008.39358086,0.00019078,2]
[380098514,1755541837726,-300.0,0.00019163,2]
[380098516,1755541837735,-8482.68692755,0.00019164,2]
[380098518,1755541837748,-865.11273503,0.00019164,2]
[380098520,1755541837767,-38548.98666513,0.00019164,2]
[380098522,1755541837776,-753.87,0.00019168,3]
[380098525,1755541837785,-500.0,0.00019172,2]
[380098529,1755541837795,-250.0,0.00019172,2]
[380098531,1755541837804,-500.0,0.00019172,2]
[380098533,1755541837813,-500.0,0.00019172,2]
[380098535,1755541837822,-500.0,0.00019172,2]
[380098536,1755541837832,-500.0,0.00019172,2]
[380098537,1755541837841,-500.0,0.00019172,2]
[380098538,1755541837850,-500.0,0.00019172,2]
[380098539,1755541837861,-188.5465913,0.00019172,2]
[380098540,1755541837872,-286.04668938,0.00019172,2]
[380098541,1755541837882,-282.75120941,0.00019172,2]
[380098542,1755541838017,-346.83179409,0.00019172,2]
[380098543,1755541838032,-197.5264365,0.00019173,2]
[380098544,1755541838042,-500.0,0.00019173,2]
[380098545,1755541838051,-500.0,0.00019173,2]
[380098546,1755541838060,-500.0,0.00019173,2]
[380098547,1755541838069,-503.11918519,0.00019173,2]
[380098548,1755541838079,-42152.83300398,0.00019173,2]
[380098549,1755541838088,-500.0,0.00019173,2]
[380098550,1755541838096,-329.95425874,0.00019177,2]
[380098551,1755541838107,-480.0,0.00019178,2]
[380098552,1755541838120,-460.0,0.00019178,2]
[380098553,1755541838129,-460.0,0.00019178,2]
[380098554,1755541838139,-480.0,0.00019178,2]
[380098555,1755541838150,-480.0,0.00019178,2]
[380098556,1755541838161,-460.0,0.00019178,2]
[380098557,1755541838171,-460.0,0.00019178,2]
[380098558,1755541838180,-480.0,0.00019178,2]
[380098559,1755541838191,-480.0,0.00019178,2]
[380098560,1755541838203,-480.0,0.00019178,2]
[380098561,1755541838213,-480.0,0.00019178,2]
[380098562,1755541838223,-480.0,0.00019178,2]
[380098563,1755541838234,-468.19453096,0.00019178,2]
[380098564,1755541838244,-460.0,0.00019178,2]
[380098565,1755541838253,-480.0,0.00019178,2]
[380098566,1755541838263,-480.0,0.00019178,2]
[380098567,1755541838273,-460.0,0.00019178,2]
[380098568,1755541838282,-480.0,0.00019178,2]
[380098569,1755541838291,-480.0,0.00019178,2]
[380098570,1755541838300,-480.0,0.00019178,2]
[380098571,1755541838309,-480.0,0.00019178,2]
[380098572,1755541838319,-480.0,0.00019178,2]
[380098573,1755541838330,-461.62108008,0.00019178,2]
[380098574,1755541838339,-480.0,0.00019178,2]
[380098575,1755541838348,-445.80773449,0.00019178,2]
[380098576,1755541838359,-480.0,0.00019178,2]
[380098577,1755541838368,-480.0,0.00019178,2]
[380098578,1755541838377,-480.0,0.00019178,2]
[380098579,1755541838386,-480.0,0.00019178,2]
[380098580,1755541838396,-460.0,0.00019178,2]
[380098581,1755541838406,-500.15,0.00019178,2]
[380098582,1755541838415,-500.0,0.00019178,2]
[380098583,1755541838425,-500.0,0.00019178,2]
[380098584,1755541838434,-500.0,0.00019178,2]
[380098585,1755541838443,-568.27,0.00019178,2]
[380098586,1755541838452,-480.0,0.00019178,2]
[380098587,1755541838462,-480.0,0.00019178,2]
[380098588,1755541838471,-200.6861576,0.00019178,2]
[380098589,1755541838480,-480.0,0.00019178,2]
[380098590,1755541838490,-626.37,0.00019178,2]
[380098591,1755541838499,-460.0,0.00019178,2]
[380098592,1755541838508,-480.0,0.00019178,2]
[380098593,1755541838517,-480.0,0.00019178,2]
[380098594,1755541838526,-388.52879298,0.00019178,2]
[380098595,1755541838535,-480.0,0.00019178,2]
[380098596,1755541838545,-480.0,0.00019178,2]
[380098597,1755541838554,-480.0,0.00019178,2]
[380098598,1755541838563,-490.69,0.00019178,2]
[380098599,1755541838572,-480.0,0.00019178,2]
[380098600,1755541838582,-480.0,0.00019178,2]
[380098601,1755541838590,-480.0,0.00019178,2]
[380098602,1755541838600,-480.0,0.00019178,2]
[380098603,1755541838610,-460.0,0.00019178,2]
[380098604,1755541838620,-480.0,0.00019178,2]
[380098605,1755541838629,-480.0,0.00019178,2]
[380098606,1755541838638,-460.0,0.00019178,2]
[380098607,1755541838648,-480.0,0.00019178,2]
[380098608,1755541838657,-480.0,0.00019178,2]
[380098609,1755541838667,-480.0,0.00019178,2]
[380098610,1755541838676,-460.0,0.00019178,2]
[380098611,1755541838686,-480.0,0.00019178,2]
[380098612,1755541838695,-480.0,0.00019178,2]
[380098613,1755541838705,-480.0,0.00019178,2]
[380098614,1755541838715,-480.0,0.00019178,2]
[380098615,1755541838724,-480.0,0.00019178,2]
[380098616,1755541838733,-398.32930879,0.00019178,2]
[380098617,1755541838743,-466.33812446,0.00019178,2]
[380098618,1755541838753,-480.0,0.00019178,2]
[380098619,1755541838762,-460.0,0.00019178,2]
[380098620,1755541838771,-462.3,0.00019178,2]
[380098621,1755541838781,-480.0,0.00019178,2]
[380098622,1755541838790,-460.0,0.00019178,2]
[380098623,1755541838800,-480.0,0.00019178,2]
[380098624,1755541838810,-480.0,0.00019178,2]
[380098625,1755541838820,-480.0,0.00019178,2]
[380098626,1755541838829,-480.0,0.00019178,2]
[380098627,1755541838838,-462.79052649,0.00019178,2]
[380098628,1755541838848,-480.0,0.00019178,2]
[380098629,1755541838857,-403.78300779,0.00019178,2]
[380098630,1755541838866,-480.0,0.00019178,2]
[380098631,1755541838876,-480.0,0.00019178,2]
[380098632,1755541838885,-480.0,0.00019178,2]
[380098633,1755541838894,-480.0,0.00019178,2]
[380098634,1755541838904,-353.03593812,0.00019178,2]
[380098635,1755541838913,-480.0,0.00019178,2]
[380098636,1755541838922,-198.09871778,0.00019178,2]
[380098637,1755541838932,-480.0,0.00019178,2]
[380098638,1755541838941,-596.10137762,0.00019178,2]
[380098639,1755541838951,-480.0,0.00019178,2]
[380098640,1755541838961,-460.0,0.00019178,2]
[380098641,1755541838970,-460.0,0.00019178,2]
[380098642,1755541838980,-480.0,0.00019178,2]
[380098643,1755541838989,-480.0,0.00019178,2]
[380098644,1755541838999,-480.0,0.00019178,2]
[380098645,1755541839008,-460.0,0.00019178,2]
[380098646,1755541839017,-480.0,0.00019178,2]
[380098647,1755541839026,-480.0,0.00019178,2]
[380098648,1755541839036,-480.0,0.00019178,2]
[380098649,1755541839046,-480.0,0.00019178,2]
[380098650,1755541839055,-460.38725175,0.00019178,2]
[380098651,1755541839064,-480.0,0.00019178,2]
[380098652,1755541839074,-480.0,0.00019178,2]
[380098653,1755541839083,-480.0,0.00019178,2]
[380098654,1755541839092,-480.0,0.00019178,2]
[380098655,1755541839101,-480.0,0.00019178,2]
[380098656,1755541839113,-480.0,0.00019178,2]
[380098657,1755541839128,-480.0,0.00019178,2]
[380098658,1755541839137,-480.0,0.00019178,2]
[380098659,1755541839147,-480.0,0.00019178,2]
[380098660,1755541839157,-480.0,0.00019178,2]
[380098661,1755541839166,-480.0,0.00019178,2]
[380098662,1755541839176,-480.0,0.00019178,2]
[380098663,1755541839186,-564.37,0.00019178,2]
[380098665,1755541839200,-480.0,0.00019178,2]
[380098667,1755541839209,-480.0,0.00019178,2]
[380098668,1755541839219,-480.0,0.00019178,2]
[380098669,1755541839228,-480.0,0.00019178,2]
[380098670,1755541839237,-360.00000001,0.00019178,2]
[380098671,1755541839247,-483.39,0.00019178,2]
[380098672,1755541839256,-480.0,0.00019178,2]
[380098673,1755541839265,-480.0,0.00019178,2]
[380098674,1755541839274,-480.0,0.00019178,2]
[380098675,1755541839283,-480.0,0.00019178,2]
[380098676,1755541839293,-461.5908199,0.00019178,2]
[380098677,1755541839303,-461.99479052,0.00019178,2]
[380098678,1755541839313,-480.0,0.00019178,2]
[380098679,1755541839323,-480.0,0.00019178,2]
[380098680,1755541839332,-480.0,0.00019178,2]
[380098681,1755541839341,-284.58224267,0.00019178,2]
[380098682,1755541839351,-480.0,0.00019178,2]
[380098683,1755541839362,-480.0,0.00019178,2]
[380098684,1755541839371,-288.55939699,0.00019178,2]
[380098685,1755541839380,-480.0,0.00019178,2]
[380098686,1755541839391,-460.0,0.00019178,2]
[380098687,1755541839401,-460.0,0.00019178,2]
[380098689,1755541839411,-480.0,0.00019178,2]
[380098690,1755541839419,-460.0,0.00019178,2]
[380098691,1755541839428,-480.0,0.00019178,2]
[380098692,1755541839437,-480.0,0.00019178,2]
[380098693,1755541839446,-460.0,0.00019178,2]
[380098694,1755541839456,-500.0,0.00019178,2]
[380098695,1755541839465,-500.0,0.00019178,2]
[380098696,1755541839474,-440.74097291,0.00019178,2]
[380098697,1755541839483,-480.0,0.00019178,2]
[380098698,1755541839492,-480.0,0.00019178,2]
[380098699,1755541839502,-480.0,0.00019178,2]
[380098700,1755541839510,-480.0,0.00019178,2]
[380098701,1755541839519,-480.0,0.00019178,2]
[380098702,1755541839528,-480.0,0.00019178,2]
[380098703,1755541839538,-480.0,0.00019178,2]
[380098704,1755541839547,-480.0,0.00019178,2]
[380098705,1755541839556,-480.0,0.00019178,2]
[380098706,1755541839566,-480.0,0.00019178,2]
[380098707,1755541839575,-480.0,0.00019178,2]
[380098708,1755541839585,-480.0,0.00019178,2]
[380098709,1755541839595,-480.0,0.00019178,2]
[380098710,1755541839604,-480.0,0.00019178,2]
[380098711,1755541839614,-480.0,0.00019178,2]
[380098712,1755541839623,-460.0,0.00019178,2]
[380098713,1755541839632,-400.0,0.00019178,2]
[380098714,1755541839642,-480.0,0.00019178,2]
[380098715,1755541839651,-480.0,0.00019178,2]
[380098716,1755541839661,-480.0,0.00019178,2]
[380098717,1755541839670,-480.0,0.00019178,2]
[380098718,1755541839679,-480.0,0.00019178,2]
[380098719,1755541839689,-480.0,0.00019178,2]
[380098720,1755541839698,-480.0,0.00019178,2]
[380098721,1755541839707,-420.0,0.00019178,2]
[380098722,1755541839716,-480.0,0.00019178,2]
[380098723,1755541839725,-480.0,0.00019178,2]
[380098724,1755541839734,-480.0,0.00019178,2]
[380098726,1755541839743,-480.0,0.00019178,2]
[380098728,1755541839752,-480.0,0.00019178,2]
[380098729,1755541839762,-480.0,0.00019178,2]
[380098731,1755541839771,-480.0,0.00019178,2]
[380098732,1755541839780,-480.0,0.00019178,2]
[380098733,1755541839790,-480.0,0.00019178,2]
[380098734,1755541839799,-480.0,0.00019178,2]
[380098735,1755541839808,-480.0,0.00019178,2]
[380098736,1755541839817,-480.0,0.00019178,2]
[380098737,1755541839827,-480.0,0.00019178,2]
[380098738,1755541839837,-480.0,0.00019178,2]
[380098739,1755541839846,-480.0,0.00019178,2]
[380098740,1755541839855,-480.0,0.00019178,2]
[380098741,1755541839865,-480.0,0.00019178,2]
[380098742,1755541839874,-480.0,0.00019178,2]
[380098743,1755541839883,-480.0,0.00019178,2]
[380098744,1755541839893,-480.0,0.00019178,2]
[380098745,1755541839903,-480.0,0.00019178,2]
[380098746,1755541839913,-380.0,0.00019178,2]
[380098747,1755541839922,-480.0,0.00019178,2]
[380098748,1755541839931,-504.05,0.00019178,2]
[380098749,1755541839941,-480.0,0.00019178,2]
[380098750,1755541839951,-245.03785685,0.00019178,2]
[380098751,1755541839960,-544.23,0.00019178,2]
[380098753,1755541839969,-480.0,0.00019178,2]
[380098754,1755541839979,-480.0,0.00019178,2]
[380098755,1755541839988,-480.0,0.00019178,2]
[380098756,1755541839998,-480.0,0.00019178,2]
[380098757,1755541840007,-480.0,0.00019178,2]
[380098758,1755541840016,-480.0,0.00019178,2]
[380098759,1755541840025,-577.15,0.00019178,2]
[380098761,1755541840035,-480.0,0.00019178,2]
[380098762,1755541840044,-480.0,0.00019178,2]
[380098763,1755541840054,-480.0,0.00019178,2]
[380098764,1755541840063,-480.0,0.00019178,2]
[380098765,1755541840072,-480.0,0.00019178,2]
[380098766,1755541840082,-460.0,0.00019178,2]
[380098767,1755541840091,-480.0,0.00019178,2]
[380098768,1755541840101,-570.96,0.00019178,2]
[380098769,1755541840115,-480.0,0.00019178,2]
[380098770,1755541840126,-480.0,0.00019178,2]
[380098771,1755541840135,-480.0,0.00019178,2]
[380098772,1755541840144,-480.0,0.00019178,2]
[380098773,1755541840155,-480.0,0.00019178,2]
[380098774,1755541840164,-480.0,0.00019178,2]
[380098775,1755541840173,-480.0,0.00019178,2]
[380098776,1755541840183,-572.27,0.00019178,2]
[380098777,1755541840194,-480.0,0.00019178,2]
[380098778,1755541840203,-480.0,0.00019178,2]
[380098779,1755541840213,-480.0,0.00019178,2]
[380098780,1755541840223,-480.0,0.00019178,2]
[380098781,1755541840232,-480.0,0.00019178,2]
[380098782,1755541840241,-480.0,0.00019178,2]
[380098783,1755541840250,-480.0,0.00019178,2]
[380098784,1755541840259,-480.0,0.00019178,2]
[380098785,1755541840269,-480.0,0.00019178,2]
[380098786,1755541840279,-480.0,0.00019178,2]
[380098787,1755541840288,-480.0,0.00019178,2]
[380098788,1755541840299,-620.95655112,0.00019178,2]
[380098789,1755541840308,-480.0,0.00019178,2]
[380098790,1755541840317,-590.35,0.00019178,2]
[380098791,1755541840326,-480.0,0.00019178,2]
[380098792,1755541840336,-480.0,0.00019178,2]
[380098793,1755541840345,-480.0,0.00019178,2]
[380098794,1755541840355,-480.0,0.00019178,2]
[380098795,1755541840364,-480.0,0.00019178,2]
[380098796,1755541840373,-480.0,0.00019178,2]
[380098797,1755541840382,-480.0,0.00019178,2]
[380098798,1755541840391,-521.58,0.00019178,2]
[380098799,1755541840401,-652.96,0.00019178,2]
[380098800,1755541840410,-480.0,0.00019178,2]
[380098801,1755541840419,-480.0,0.00019178,2]
[380098802,1755541840428,-480.0,0.00019178,2]
[380098803,1755541840438,-480.0,0.00019178,2]
[380098804,1755541840447,-480.0,0.00019178,2]
[380098805,1755541840456,-480.0,0.00019178,2]
[380098806,1755541840466,-480.0,0.00019178,2]
[380098807,1755541840475,-480.0,0.00019178,2]
[380098808,1755541840484,-480.0,0.00019178,2]
[380098809,1755541840494,-480.0,0.00019178,2]
[380098810,1755541840508,-480.0,0.00019178,2]
[380098811,1755541840521,-480.0,0.00019178,2]
[380098812,1755541840531,-480.0,0.00019178,2]
[380098813,1755541840545,-480.0,0.00019178,2]
[380098814,1755541840555,-480.0,0.00019178,2]
[380098815,1755541840565,-8394.39,0.00019178,2]
[380098816,1755541840575,-480.0,0.00019178,2]
[380098817,1755541840584,-480.0,0.00019178,2]
[380098818,1755541840593,-557.15028992,0.00019178,2]
[380098819,1755541840603,-480.0,0.00019178,2]
[380098820,1755541840613,-480.0,0.00019178,2]
[380098821,1755541840622,-480.0,0.00019178,2]
[380098822,1755541840633,-511.5,0.00019178,2]
[380098823,1755541840749,-480.0,0.00019178,2]
[380098824,1755541840759,-203.01964582,0.00019178,2]
[380098825,1755541840769,-480.0,0.00019178,2]
[380098826,1755541840778,-480.0,0.00019178,2]
[380098827,1755541840789,-343.10931404,0.00019178,2]
[380098828,1755541840799,-480.0,0.00019178,2]
[380098829,1755541840809,-480.0,0.00019178,2]
[380098830,1755541840818,-480.0,0.00019178,2]
[380098831,1755541840827,-480.0,0.00019178,2]
[380098832,1755541840837,-480.0,0.00019178,2]
[380098833,1755541840848,-460.0,0.00019178,2]
[380098834,1755541840865,-500.0,0.00019178,2]
[380098835,1755541840875,-251.29,0.0001919,3]
[380098836,1755541840885,-1228.62990194,0.000192,2]
[380098837,1755541840895,-17842.522448,0.00019216,2]
[380098838,1755541840904,-2183.31810187,0.00019216,2]
[380098839,1755541840913,-2264.10087164,0.00019271,2]
[380098840,1755541840923,-1034.77245164,0.00019273,2]
[380098841,1755541840943,-2347.87260389,0.00019326,2]